bitfinex-derivatives/quotes_BTCF0:USTF0_20241128
["timestamp","ask_amount","ask_price","bid_price","bid_amount"]
[1732782704639,0.36090355,95666.0,95665.0,0.01467058]
[1732782705037,0.36090355,95666.0,95665.0,0.01467063]
[1732782707239,0.36090355,95666.0,95665.0,0.2248427]
[1732782707443,0.36090355,95666.0,95665.0,0.03795324]
[1732782707638,0.36090355,95666.0,95665.0,0.06211906]
[1732782707939,0.36090355,95666.0,95665.0,0.03883645]
[1732782708333,0.36090355,95666.0,95665.0,0.001]
[1732782708535,0.36090355,95666.0,95665.0,0.03930156]
[1732782710647,0.36090355,95666.0,95665.0,0.03937997]
[1732782712246,0.36090355,95666.0,95665.0,0.01580978]
[1732782713244,0.36090355,95666.0,95665.0,0.00107841]
[1732782713245,0.54769154,95666.0,95665.0,0.00107841]
[1732782713642,0.36090355,95666.0,95665.0,0.00107841]
[1732782714541,0.5488633,95666.0,95665.0,0.00107841]
[1732782714741,0.36090355,95666.0,95665.0,0.00107841]
[1732782716036,0.54888833,95666.0,95665.0,0.00107841]
[1732782716243,0.36090355,95666.0,95665.0,0.00107841]
[1732782718548,0.36090355,95666.0,95665.0,0.18841788]
[1732782718736,0.36090355,95666.0,95665.0,0.00107841]
[1732782718947,0.51758405,95666.0,95665.0,0.00107841]
[1732782719337,0.36090355,95666.0,95665.0,0.00107841]
[1732782719937,0.72170355,95666.0,95665.0,0.20266038]
[1732782720141,0.81950355,95666.0,95665.0,0.00107841]
[1732782721151,0.81950355,95666.0,95646.0,0.052252]
[1732782721152,1.13310355,95666.0,95652.0,0.18736139]
[1732782721451,1.13310355,95666.0,95645.0,0.18736139]
[1732782721452,0.3608,95653.0,95645.0,0.18736139]
[1732782721637,0.15667864,95650.0,95646.0,0.01438126]
[1732782721850,0.15667864,95650.0,95647.0,0.0143813]
[1732782722044,0.15667864,95650.0,95646.0,0.052252]
[1732782722247,0.052251,95648.0,95647.0,7.747e-05]
[1732782723152,0.052251,95648.0,95647.0,0.01457518]
[1732782723343,0.052251,95648.0,95647.0,7.747e-05]
[1732782723749,0.082651,95648.0,95647.0,7.747e-05]
[1732782725145,0.084651,95648.0,95647.0,7.747e-05]
[1732782726150,0.002,95648.0,95647.0,7.747e-05]
[1732782727951,0.054251,95648.0,95647.0,7.747e-05]
[1732782728846,0.002,95648.0,95647.0,0.05232947]
[1732782729247,0.1896696,95648.0,95647.0,0.05232947]
[1732782729649,0.1896696,95648.0,95647.0,7.747e-05]
[1732782729855,0.2419206,95648.0,95647.0,7.747e-05]
[1732782730654,0.054251,95648.0,95647.0,7.747e-05]
[1732782730958,0.002,95648.0,95647.0,0.05232947]
[1732782738055,0.002,95648.0,95647.0,7.747e-05]
[1732782738449,0.0325,95648.0,95647.0,7.747e-05]
[1732782738650,0.052255,95641.0,95640.0,0.00156844]
[1732782738952,0.413055,95641.0,95640.0,0.00156844]
[1732782739346,0.3608,95641.0,95640.0,0.05382344]
[1732782739551,0.3608,95641.0,95640.0,0.06901381]
[1732782739855,0.3608,95641.0,95640.0,0.06901386]
[1732782740255,0.3618,95641.0,95640.0,0.06901386]
[1732782741858,0.3618,95641.0,95640.0,0.06930406]
[1732782745162,0.3618,95641.0,95640.0,0.053954]
[1732782745569,0.3618,95641.0,95640.0,0.06938486]
[1732782746065,0.48697917,95641.0,95640.0,0.06938486]
[1732782746264,0.5494696,95641.0,95640.0,0.06938486]
[1732782746465,0.3618,95641.0,95640.0,0.06938486]
[1732782746660,0.3618,95641.0,95640.0,0.08324295]
[1732782747057,0.5494696,95641.0,95640.0,0.08324295]
[1732782748167,0.3618,95641.0,95640.0,0.08323877]
[1732782750276,0.001,95641.0,95640.0,0.39691877]
[1732782750565,0.61121019,95653.0,95640.0,0.78250577]
[1732782750566,0.36136001,95653.0,95640.0,0.78250577]
[1732782750756,0.15670419,95649.0,95647.0,0.18736139]
[1732782750959,0.18809075,95658.0,95648.0,0.3608]
[1732782751156,0.3608,95662.0,95659.0,0.052245]
[1732782751157,0.18809075,95660.0,95659.0,0.052245]
[1732782751362,0.54889075,95662.0,95661.0,0.052244]
[1732782751557,0.3608,95662.0,95661.0,0.052244]
[1732782751858,0.3608,95662.0,95661.0,0.06767068]
[1732782752057,0.3608,95662.0,95661.0,0.052244]
[1732782752264,0.3608,95662.0,95661.0,0.09347956]
[1732782752469,0.3608,95662.0,95661.0,0.06810383]
[1732782753164,0.00010355,95666.0,95661.0,0.04149167]
[1732782753362,0.00010355,95666.0,95665.0,0.052242]
[1732782753570,0.00010355,95666.0,95665.0,0.07837588]
[1732782753762,0.00010355,95666.0,95665.0,0.26581884]
[1732782753976,0.00010355,95666.0,95665.0,0.07837588]
[1732782754366,0.00010355,95666.0,95665.0,0.04199371]
[1732782754561,0.05234455,95666.0,95665.0,0.01585983]
[1732782755270,0.05234455,95666.0,95661.0,0.001]
[1732782755458,0.3608,95662.0,95661.0,0.001]
[1732782755864,0.3608,95662.0,95657.0,0.00230634]
[1732782756064,0.3608,95662.0,95656.0,0.052247]
[1732782756261,0.3608,95662.0,95657.0,0.052246]
[1732782756466,0.3608,95662.0,95658.0,0.01633654]
[1732782756673,0.3608,95662.0,95661.0,0.001]
[1732782757159,0.3608,95662.0,95650.0,0.12590808]
[1732782757160,0.3608,95662.0,95659.0,0.052245]
[1732782758177,0.3608,95662.0,95661.0,0.052244]
[1732782759972,0.3608,95662.0,95661.0,0.053244]
[1732782761170,0.3608,95662.0,95661.0,0.001]
[1732782762276,0.3608,95662.0,95642.0,0.052254]
[1732782762579,0.3608,95644.0,95643.0,0.0365273]
[1732782763071,0.4536,95644.0,95643.0,0.0365273]
[1732782763672,0.641202,95644.0,95643.0,0.0365273]
[1732782764065,0.8144,95644.0,95643.0,0.02091176]
[1732782764573,0.8144,95644.0,95640.0,0.00013056]
[1732782764772,0.8144,95644.0,95620.0,0.12747629]
[1732782764773,0.8144,95644.0,95627.0,0.052262]
[1732782765072,0.8144,95644.0,95620.0,0.00156821]
[1732782765073,0.052262,95628.0,95624.0,0.052264]
[1732782765274,0.052262,95628.0,95625.0,0.01541545]
[1732782765480,0.052262,95628.0,95624.0,0.052264]
[1732782765869,0.052262,95628.0,95625.0,7.618e-05]
[1732782766370,0.3608,95629.0,95625.0,7.618e-05]
[1732782766371,0.052263,95627.0,95625.0,7.618e-05]
[1732782766571,0.052263,95627.0,95625.0,0.00407618]
[1732782767776,0.72216001,95629.0,95625.0,0.00407618]
[1732782767982,0.773862,95629.0,95625.0,0.00407618]
[1732782768275,0.052262,95628.0,95625.0,0.00407618]
[1732782768479,0.052262,95628.0,95625.0,0.00807618]
[1732782768668,0.052263,95627.0,95626.0,0.01572965]
[1732782769270,0.052263,95627.0,95625.0,0.00807618]
[1732782769879,0.052263,95627.0,95626.0,0.004]
[1732782770473,0.052263,95627.0,95625.0,0.00807618]
[1732782771280,0.052263,95627.0,95625.0,0.00407618]
[1732782771471,0.052263,95627.0,95626.0,0.004]
[1732782772179,0.052263,95627.0,95626.0,0.008]
[1732782772371,0.052263,95627.0,95626.0,0.004]
[1732782774978,0.052263,95627.0,95626.0,0.008]
[1732782777777,0.052266,95621.0,95620.0,0.00156821]
[1732782777978,0.413066,95621.0,95591.0,0.20366808]
[1732782778177,0.3608,95600.0,95598.0,0.052278]
[1732782778388,0.3608,95600.0,95599.0,0.02821093]
[1732782778685,0.3608,95600.0,95599.0,0.02829675]
[1732782778880,0.3608,95600.0,95599.0,0.01642967]
[1732782779087,0.3608,95600.0,95599.0,8.582e-05]
[1732782779280,0.3608,95600.0,95599.0,0.0150096]
[1732782779488,0.3608,95600.0,95599.0,0.01642964]
[1732782779885,0.3608,95600.0,95599.0,0.03277355]
[1732782780092,0.3608,95600.0,95599.0,0.01642964]
[1732782780093,0.39127643,95600.0,95599.0,0.01642964]
[1732782780491,0.052281,95593.0,95592.0,0.01622738]
[1732782781501,0.052281,95593.0,95592.0,0.01631852]
[1732782781692,0.052281,95593.0,95592.0,0.02031852]
[1732782782292,0.0333,95594.0,95592.0,0.02631852]
[1732782782584,0.3608,95595.0,95592.0,0.02631852]
[1732782783885,0.3608,95595.0,95592.0,0.02031852]
[1732782784091,0.3608,95595.0,95593.0,0.052281]
[1732782785690,0.3782214,95600.0,95592.0,0.01109114]
[1732782785691,7.643e-05,95600.0,95592.0,0.00609114]
[1732782785891,7.643e-05,95600.0,95599.0,0.052278]
[1732782787892,0.413071,95611.0,95604.0,0.052275]
[1732782788085,0.413071,95611.0,95605.0,0.052274]
[1732782788694,0.413071,95611.0,95606.0,0.052274]
[1732782788885,0.413071,95611.0,95600.0,0.12590808]
[1732782788886,0.3608,95611.0,95610.0,0.052272]
[1732782790393,0.3628,95611.0,95610.0,0.052272]
[1732782794197,0.3628,95611.0,95599.0,0.00523033]
[1732782794390,0.3608,95600.0,95592.0,0.1875341]
[1732782794592,0.052281,95594.0,95592.0,9.114e-05]
[1732782795898,0.052281,95594.0,95592.0,0.00609114]
[1732782797194,0.052281,95594.0,95592.0,0.01109114]
[1732782797897,0.052281,95594.0,95592.0,0.00709114]
[1732782798100,0.052281,95594.0,95592.0,0.00109114]
[1732782798101,0.053281,95594.0,95592.0,0.00109114]
[1732782798693,0.07106285,95594.0,95592.0,0.00109114]
[1732782799603,0.052288,95580.0,95578.0,0.00156907]
[1732782799795,0.3938,95579.0,95578.0,0.00156907]
[1732782800303,0.3938,95579.0,95571.0,0.052293]
[1732782800502,0.3938,95579.0,95578.0,0.00011882]
[1732782800905,0.3938,95579.0,95578.0,0.00411882]
[1732782801107,0.3938,95579.0,95578.0,0.01941591]
[1732782801406,0.3938,95579.0,95578.0,0.02541591]
[1732782802303,0.3938,95579.0,95578.0,0.05056247]
[1732782802509,0.3938,95579.0,95578.0,0.02541591]
[1732782803235,0.3938,95579.0,95578.0,0.05058082]
[1732782803704,0.3938,95579.0,95578.0,0.01011882]
[1732782804007,0.3938,95579.0,95578.0,0.03528271]
[1732782804707,0.3608,95579.0,95578.0,0.03528271]
[1732782805002,0.3608,95579.0,95578.0,0.05101014]
[1732782806399,0.3924,95579.0,95578.0,0.05101014]
[1732782807009,0.3924,95579.0,95578.0,0.02584625]
[1732782808906,0.3924,95579.0,95578.0,0.01011882]
[1732782810105,0.3924,95579.0,95569.0,0.18744296]
[1732782810106,0.052294,95570.0,95569.0,0.18744296]
[1732782810319,0.33066164,95570.0,95568.0,0.18744296]
[1732782810614,0.33066164,95570.0,95566.0,0.18744296]
[1732782810615,0.052295,95568.0,95566.0,0.18744296]
[1732782810800,0.052296,95566.0,95564.0,0.18744296]
[1732782811001,0.052296,95566.0,95565.0,0.00011646]
[1732782812012,0.06995332,95566.0,95565.0,0.00011646]
[1732782812312,0.07495332,95566.0,95565.0,0.00011646]
[1732782812816,0.07495332,95566.0,95565.0,0.00111646]
[1732782813118,0.07695332,95566.0,95565.0,0.00111646]
[1732782813999,0.08095332,95566.0,95565.0,0.00211646]
[1732782814206,0.07595332,95566.0,95565.0,0.00111646]
[1732782814406,0.07595332,95566.0,95565.0,0.00211646]
[1732782814407,0.08495332,95566.0,95565.0,0.00211646]
[1732782822508,0.08395332,95566.0,95565.0,0.00111646]
[1732782824009,0.07895332,95566.0,95565.0,0.00111646]
[1732782824308,0.08395332,95566.0,95565.0,0.00111646]
[1732782824615,0.07495332,95566.0,95565.0,0.00011646]
[1732782824814,0.08395332,95566.0,95565.0,0.00011646]
[1732782825211,0.07495332,95566.0,95565.0,0.00011646]
[1732782825415,0.08395332,95566.0,95565.0,0.00011646]
[1732782825606,0.08395332,95566.0,95565.0,0.00111646]
[1732782825607,0.07895332,95566.0,95565.0,0.00111646]
[1732782825804,0.08495332,95566.0,95565.0,0.00111646]
[1732782826403,0.07895332,95566.0,95565.0,0.00111646]
[1732782826609,0.07595332,95566.0,95565.0,0.00111646]
[1732782826805,0.08495332,95566.0,95565.0,0.00111646]
[1732782828311,0.08495332,95566.0,95565.0,0.00211646]
[1732782828705,0.07595332,95566.0,95565.0,0.00111646]
[1732782828907,0.08495332,95566.0,95565.0,0.00211646]
[1732782829113,0.08503569,95566.0,95565.0,0.00211646]
[1732782829722,0.08603569,95566.0,95565.0,0.00211646]
[1732782830411,0.08603569,95566.0,95565.0,0.00111646]
[1732782830715,0.08603569,95566.0,95565.0,0.00211646]
[1732782832017,0.07903569,95566.0,95565.0,0.00111646]
[1732782832215,0.08603569,95566.0,95565.0,0.00211646]
[1732782832720,0.08603569,95566.0,95565.0,0.00111646]
[1732782832917,0.08603569,95566.0,95565.0,0.00211646]
[1732782833608,0.07903569,95566.0,95565.0,0.00111646]
[1732782833810,0.08603569,95566.0,95565.0,0.00211646]
[1732782834312,0.07703569,95566.0,95565.0,0.00111646]
[1732782834505,0.08603569,95566.0,95565.0,0.00211646]
[1732782834913,0.07703569,95566.0,95565.0,0.00111646]
[1732782835220,0.08603569,95566.0,95565.0,0.00211646]
[1732782835518,0.07703569,95566.0,95565.0,0.00111646]
[1732782835716,0.08603569,95566.0,95565.0,0.00211646]
[1732782835913,0.07903569,95566.0,95565.0,0.00111646]
[1732782836108,0.08703569,95566.0,95565.0,0.00211646]
[1732782839321,0.01708237,95566.0,95565.0,0.00211646]
[1732782839522,0.3608,95567.0,95565.0,0.00254046]
[1732782839715,0.3608,95567.0,95566.0,0.033]
[1732782840826,0.3108,95567.0,95566.0,0.033]
[1732782841421,0.3168,95567.0,95566.0,0.033]
[1732782842029,0.3258,95567.0,95566.0,0.033]
[1732782842215,0.3198,95567.0,95566.0,0.033]
[1732782842417,0.3248,95567.0,95566.0,0.033]
[1732782842620,0.3248,95567.0,95566.0,0.034]
[1732782842827,0.3248,95567.0,95566.0,0.0671]
[1732782843230,0.3248,95567.0,95566.0,0.119396]
[1732782843930,0.3248,95567.0,95566.0,0.30683896]
[1732782844126,0.3248,95567.0,95566.0,0.0671]
[1732782845224,0.3248,95567.0,95566.0,0.0341]
[1732782845425,0.3248,95567.0,95566.0,0.22154296]
[1732782846219,0.3248,95567.0,95566.0,0.0341]
[1732782849128,0.3248,95567.0,95566.0,0.001]
[1732782849330,0.358,95567.0,95566.0,0.001]
[1732782849526,0.3881,95567.0,95566.0,0.001]
[1732782849717,0.3881,95567.0,95542.0,0.01457807]
[1732782849922,0.3608,95543.0,95542.0,0.01457807]
[1732782850121,0.3608,95543.0,95542.0,0.07997029]
[1732782850333,0.3608,95543.0,95542.0,0.01457807]
[1732782850720,0.3608,95543.0,95542.0,0.0147057]
[1732782851229,0.3608,95543.0,95542.0,0.00169754]
[1732782851230,0.3628,95543.0,95542.0,0.00169754]
[1732782851530,0.3628,95543.0,95542.0,0.00269754]
[1732782852123,0.3628,95543.0,95542.0,0.00169754]
[1732782852322,0.3628,95543.0,95542.0,0.00269754]
[1732782854233,0.0303,95566.0,95542.0,0.00269754]
[1732782854234,0.3608,95565.0,95542.0,0.97749754]
[1732782854534,0.21943678,95576.0,95574.0,0.052291]
[1732782854734,0.21943678,95579.0,95577.0,0.05229]
[1732782855437,7.929e-05,95580.0,95577.0,0.05229]
[1732782855438,7.929e-05,95580.0,95578.0,0.31388]
[1732782855628,7.929e-05,95580.0,95579.0,0.366169]
[1732782858029,7.929e-05,95580.0,95579.0,0.054289]
[1732782858333,7.929e-05,95580.0,95579.0,0.002]
[1732782858840,0.05236729,95580.0,95579.0,0.001]
[1732782860940,7.929e-05,95580.0,95579.0,0.001]
[1732782861137,7.929e-05,95580.0,95578.0,0.052289]
[1732782861332,7.929e-05,95580.0,95579.0,0.001]
[1732782861527,0.00407929,95580.0,95579.0,0.001]
[1732782861941,0.00407929,95580.0,95578.0,0.052289]
[1732782862136,0.00607929,95580.0,95578.0,0.052289]
[1732782863744,0.00707929,95580.0,95578.0,0.052289]
[1732782864444,0.052289,95579.0,95578.0,0.052289]
[1732782864946,0.00107929,95580.0,95578.0,0.052289]
[1732782865133,0.00507929,95580.0,95578.0,0.052289]
[1732782865637,0.005,95579.0,95578.0,0.052289]
[1732782867036,0.006,95579.0,95566.0,0.12590808]
[1732782867240,0.3608,95567.0,95566.0,0.052296]
[1732782868540,0.3618,95567.0,95566.0,0.052296]
[1732782868937,0.3618,95567.0,95559.0,0.052299]
[1732782869140,0.3618,95567.0,95560.0,0.20051457]
[1732782869332,0.414095,95567.0,95559.0,0.052299]
[1732782869744,0.414095,95567.0,95562.0,0.052298]
[1732782870041,0.414095,95567.0,95559.0,0.002]
[1732782870747,0.3618,95567.0,95552.0,0.18743291]
[1732782870944,0.3618,95567.0,95564.0,0.052297]
[1732782871245,0.3608,95567.0,95564.0,0.052297]
[1732782872234,0.3608,95567.0,95559.0,0.003]
[1732782872444,0.3608,95567.0,95559.0,0.002]
[1732782873038,0.3608,95567.0,95559.0,0.001]
[1732782873241,0.3618,95567.0,95560.0,0.052299]
[1732782873841,0.416095,95567.0,95560.0,0.052299]
[1732782874051,0.415095,95567.0,95560.0,0.052299]
[1732782874244,0.3628,95567.0,95559.0,0.001]
[1732782874446,0.3628,95567.0,95563.0,0.052297]
[1732782874748,0.3608,95567.0,95563.0,0.052297]
[1732782874950,0.3628,95567.0,95563.0,0.052297]
[1732782876548,0.3638,95567.0,95563.0,0.052297]
[1732782876749,0.3648,95567.0,95563.0,0.052297]
[1732782877142,0.0313,95566.0,95563.0,0.052297]
[1732782877742,0.0305,95565.0,95559.0,0.0523]
[1732782878448,0.052298,95562.0,95552.0,0.052303]
[1732782878643,0.3608,95559.0,95542.0,0.03449754]
[1732782878839,0.0325,95558.0,95552.0,0.052303]
[1732782879445,0.084801,95558.0,95552.0,0.052303]
[1732782879642,0.052301,95557.0,95552.0,0.053303]
[1732782880441,0.052301,95557.0,95552.0,0.054303]
[1732782880842,0.0335,95558.0,95556.0,0.052301]
[1732782881249,0.0325,95558.0,95556.0,0.052301]
[1732782881453,0.002,95557.0,95556.0,0.052301]
[1732782882748,0.0325,95558.0,95556.0,0.052301]
[1732782882941,0.003,95557.0,95556.0,0.052301]
[1732782883346,0.0325,95558.0,95556.0,0.052301]
[1732782883652,0.004,95557.0,95556.0,0.052301]
[1732782884061,0.006,95557.0,95556.0,0.052301]
[1732782885646,0.001,95557.0,95556.0,0.052301]
[1732782885856,0.0355,95558.0,95556.0,0.052301]
[1732782886266,0.003,95557.0,95556.0,0.052301]
[1732782886668,0.003,95557.0,95547.0,0.18743291]
[1732782886875,0.052305,95550.0,95546.0,0.18743291]
[1732782887075,0.052306,95548.0,95542.0,0.00012763]
[1732782887265,0.3608,95543.0,95542.0,0.00012763]
[1732782887673,0.3608,95543.0,95542.0,0.03414507]
[1732782888565,0.3608,95543.0,95542.0,0.00012763]
[1732782889368,0.3608,95543.0,95542.0,0.00112763]
[1732782890772,0.3618,95543.0,95542.0,0.00112763]
[1732782898876,0.3618,95543.0,95542.0,0.05343663]
[1732782901771,0.001,95543.0,95542.0,0.05343663]
[1732782903784,0.001,95543.0,95542.0,0.00112763]
[1732782906182,0.6758,95543.0,95530.0,0.23974791]
[1732782906484,0.3608,95531.0,95530.0,0.052315]
[1732782907173,0.3608,95531.0,95530.0,0.05239758]
[1732782907374,0.3608,95531.0,95530.0,0.05739758]
[1732782907573,0.3608,95531.0,95530.0,0.06139758]
[1732782908377,0.0633,95539.0,95530.0,0.05739758]
[1732782908572,0.0633,95539.0,95533.0,0.052314]
[1732782908977,0.0633,95539.0,95534.0,0.052313]
[1732782909174,0.0633,95539.0,95530.0,0.19651549]
[1732782909378,0.0328,95539.0,95531.0,0.18743291]
[1732782909785,0.3608,95535.0,95532.0,0.052314]
[1732782910087,0.3608,95535.0,95530.0,0.00408258]
[1732782910287,0.3608,95535.0,95534.0,0.003]
[1732782910975,0.67484,95535.0,95534.0,0.003]
[1732782911182,0.052319,95523.0,95521.0,0.00157021]
[1732782911486,0.052321,95520.0,95509.0,0.18743291]
[1732782911681,0.3608,95514.0,95510.0,0.24926704]
[1732782911889,0.3608,95514.0,95509.0,0.24926704]
[1732782912079,0.00847507,95513.0,95508.0,0.30159404]
[1732782912284,0.3608,95514.0,95508.0,0.30159404]
[1732782912285,0.00847507,95512.0,95509.0,0.00010286]
[1732782912480,0.3608,95514.0,95509.0,0.00010286]
[1732782912481,0.00847507,95511.0,95509.0,0.00010286]
[1732782912688,0.00847507,95510.0,95509.0,0.00010286]
[1732782913594,0.00847507,95510.0,95509.0,0.00910286]
[1732782913781,0.00847507,95510.0,95509.0,0.01810286]
[1732782914194,0.00947507,95510.0,95509.0,0.01810286]
[1732782914691,0.01047507,95510.0,95509.0,0.01610286]
[1732782915295,0.002,95510.0,95509.0,0.01610286]
[1732782916190,0.0107362,95510.0,95509.0,0.01610286]
[1732782917084,0.0097362,95510.0,95509.0,0.01210286]
[1732782917284,0.0087362,95510.0,95509.0,0.00610286]
[1732782917484,0.00976598,95510.0,95509.0,0.00610286]
[1732782918095,0.010151,95510.0,95509.0,0.00610286]
[1732782918893,0.00056001,95522.0,95521.0,0.052315]
[1732782919207,0.3608,95544.0,95521.0,0.052315]
[1732782919208,0.3608,95545.0,95521.0,0.413115]
[1732782919505,0.3608,95545.0,95531.0,0.3608]
[1732782919682,0.3608,95545.0,95542.0,0.052309]
[1732782920088,0.052308,95544.0,95535.0,0.052312]
[1732782920293,0.3608,95545.0,95535.0,0.052312]
[1732782920294,0.05231,95540.0,95535.0,0.052312]
[1732782920692,0.05231,95540.0,95536.0,0.052312]
[1732782921005,0.3608,95545.0,95543.0,0.052308]
[1732782921290,0.004,95544.0,95542.0,0.001]
[1732782921493,0.056308,95544.0,95542.0,0.001]
[1732782922093,0.052308,95544.0,95542.0,0.001]
[1732782922296,0.01426011,95543.0,95542.0,0.001]
[1732782922497,0.052309,95542.0,95531.0,0.052314]
[1732782922693,0.3608,95534.0,95523.0,0.22028758]
[1732782922997,0.3608,95534.0,95532.0,0.052314]
[1732782922998,0.01426011,95533.0,95532.0,0.052314]
[1732782923389,0.3608,95534.0,95532.0,0.052314]
[1732782923693,0.3608,95534.0,95523.0,0.18728758]
[1732782924199,0.3608,95534.0,95532.0,0.052314]
[1732782924501,0.052307,95546.0,95527.0,0.18728758]
[1732782924685,0.06957422,95546.0,95542.0,0.052309]
[1732782924885,0.002,95544.0,95542.0,0.052309]
[1732782925688,0.052308,95544.0,95542.0,0.052309]
[1732782926392,0.059308,95544.0,95542.0,0.053309]
[1732782927097,0.007,95544.0,95542.0,0.053309]
[1732782927289,0.3608,95545.0,95531.0,0.3608]
[1732782927596,0.007,95544.0,95542.0,0.052309]
[1732782928394,0.005,95544.0,95542.0,0.052309]
[1732782928988,0.059308,95544.0,95542.0,0.001]
[1732782929393,0.060308,95544.0,95542.0,0.001]
[1732782929595,0.053308,95544.0,95542.0,0.052309]
[1732782929801,0.058308,95544.0,95542.0,0.052309]
[1732782930198,0.006,95544.0,95542.0,0.052309]
[1732782930393,0.008,95544.0,95542.0,0.053309]
[1732782931398,0.007,95544.0,95542.0,0.053309]
[1732782931701,0.008,95544.0,95542.0,0.053309]
[1732782932202,0.007,95544.0,95542.0,0.053309]
[1732782932796,0.007,95544.0,95542.0,0.052309]
[1732782932994,0.003,95544.0,95542.0,0.052309]
[1732782933495,0.003,95544.0,95524.0,0.01738031]
[1732782933496,0.54844611,95545.0,95524.0,0.01738031]
[1732782933699,0.54844611,95545.0,95543.0,0.052308]
[1732782933700,0.007,95544.0,95543.0,0.052308]
[1732782934202,0.0333,95574.0,95563.0,0.052297]
[1732782934408,0.3608,95574.0,95563.0,0.052297]
[1732782934604,0.413092,95574.0,95563.0,0.052297]
[1732782934810,0.02093586,95572.0,95563.0,0.23940422]
[1732782935097,0.052298,95563.0,95561.0,0.052298]
[1732782935499,0.082298,95563.0,95561.0,0.052298]
[1732782936199,0.035,95563.0,95561.0,0.052298]
[1732782936904,0.041,95563.0,95561.0,0.053298]
[1732782941403,0.0084415,95562.0,95561.0,0.053298]
[1732782942699,0.0134415,95562.0,95561.0,0.053298]
[1732782943599,0.005,95562.0,95561.0,0.053298]
[1732782943792,0.011,95562.0,95561.0,0.053298]
[1732782952709,0.011,95562.0,95561.0,0.001]
[1732782952907,0.052307,95547.0,95542.0,0.052309]
[1732782953208,0.3608,95543.0,95542.0,0.052309]
[1732782954502,0.3618,95543.0,95542.0,0.052309]
[1732782956303,0.3628,95543.0,95542.0,0.052309]
[1732782956710,0.3652362,95543.0,95542.0,0.052309]
[1732782957024,0.3682362,95543.0,95542.0,0.052309]
[1732782957507,0.3692362,95543.0,95542.0,0.052309]
[1732782957708,0.3702362,95543.0,95542.0,0.052309]
[1732782957910,0.052309,95542.0,95533.0,0.18710722]
[1732782958213,0.117409,95542.0,95538.0,0.052311]
[1732782958807,0.1188452,95542.0,95538.0,0.052311]
[1732782959009,0.1188452,95542.0,95532.0,0.18710722]
[1732782959306,0.1188452,95542.0,95526.0,0.2496488]
[1732782959307,0.3608,95535.0,95534.0,0.052313]
[1732782959613,0.36923483,95535.0,95534.0,0.052313]
[1732782959814,0.37067103,95535.0,95534.0,0.052313]
[1732782960615,0.37167103,95535.0,95534.0,0.052313]
[1732782960802,0.37167103,95535.0,95534.0,0.23942022]
[1732782961306,0.37167103,95535.0,95534.0,0.052313]
[1732782961511,0.37267103,95535.0,95534.0,0.052313]
[1732782961708,0.3642362,95535.0,95534.0,0.052313]
[1732782962011,0.3632362,95535.0,95534.0,0.052313]
[1732782962312,0.3662362,95535.0,95534.0,0.052313]
[1732782962809,0.36366392,95535.0,95534.0,0.052313]
[1732782963409,0.36266392,95535.0,95534.0,0.053313]
[1732782965106,0.36266392,95535.0,95534.0,0.001]
[1732782965414,0.39456392,95535.0,95534.0,0.001]
[1732782965911,0.052322,95518.0,95515.0,0.18710722]
[1732782966117,0.3608,95516.0,95514.0,0.052324]
[1732782966816,0.00186392,95515.0,95514.0,0.052324]
[1732782967602,0.00186392,95515.0,95514.0,0.056324]
[1732782967807,0.00287276,95515.0,95514.0,0.004]
[1732782968007,0.05519676,95515.0,95514.0,0.004]
[1732782968220,0.05519676,95515.0,95514.0,0.056324]
[1732782968402,0.05519676,95515.0,95514.0,0.052324]
[1732782968608,0.05519676,95515.0,95514.0,0.056324]
[1732782969004,0.05519676,95515.0,95514.0,0.062324]
[1732782970207,0.00287276,95515.0,95514.0,0.062324]
[1732782973713,0.00388943,95515.0,95514.0,0.062324]
[1732782974513,0.413123,95516.0,95514.0,0.062324]
[1732782974817,0.00430967,95515.0,95514.0,0.062324]
[1732782975523,0.00430967,95515.0,95514.0,0.01]
[1732782975824,0.06830967,95515.0,95514.0,0.01]
[1732782976725,0.00430967,95515.0,95514.0,0.006]
[1732782976920,0.00430967,95515.0,95514.0,0.01]
[1732782977223,0.00430967,95515.0,95514.0,0.004]
[1732782977526,0.00430967,95515.0,95514.0,0.005]
[1732782977720,0.00430967,95515.0,95514.0,0.002]
[1732782980319,0.00533142,95515.0,95514.0,0.002]
[1732782981224,0.00574658,95515.0,95514.0,0.002]
[1732782986530,0.00623516,95515.0,95514.0,0.002]
[1732782987324,0.3608,95516.0,95515.0,0.04560026]
[1732782990340,0.3608,95516.0,95515.0,0.04660026]
[1732782991131,0.00157043,95538.0,95528.0,0.052317]
[1732782991132,0.0311,95529.0,95528.0,0.052317]
[1732782991330,0.3608,95535.0,95534.0,0.052313]
[1732782992432,0.3608,95535.0,95534.0,0.08633523]
[1732782992634,0.3678,95535.0,95534.0,0.08733523]
[1732782993332,0.3678,95535.0,95534.0,0.053313]
[1732782993531,0.36928305,95535.0,95534.0,0.08733455]
[1732782993838,0.36928305,95535.0,95534.0,0.08733457]
[1732782994032,0.37069642,95535.0,95534.0,0.08733457]
[1732782994433,0.37069642,95535.0,95534.0,0.053313]
[1732782994634,0.36769642,95535.0,95534.0,0.052313]
[1732782994835,0.36669642,95535.0,95534.0,0.052313]
[1732782995132,0.36769642,95535.0,95534.0,0.052313]
[1732782996537,0.36669642,95535.0,95534.0,0.052313]
[1732782996837,0.36769642,95535.0,95534.0,0.052313]
[1732782999737,0.36871809,95535.0,95534.0,0.052313]
[1732783000638,0.36871809,95535.0,95534.0,0.23949445]
[1732783000841,0.00833309,95535.0,95534.0,0.052313]
[1732783001047,0.00833309,95535.0,95534.0,0.06539796]
[1732783004348,0.00833309,95535.0,95534.0,0.42619796]
[1732783004937,0.00833309,95535.0,95534.0,0.61336632]
[1732783005133,0.00833309,95535.0,95534.0,0.42619796]
[1732783005437,0.00833309,95535.0,95534.0,0.63417801]
[1732783005632,0.00833309,95535.0,95534.0,0.94821801]
[1732783005842,0.3608,95551.0,95550.0,0.052305]
[1732783006043,0.0315,95560.0,95559.0,0.0523]
[1732783006433,0.0636,95571.0,95559.0,0.0523]
[1732783006631,0.01706867,95568.0,95559.0,0.0523]